[Event "Chinese League Division-A 2024"]
[Site "Fuling Chongqing"]
[Date "2024.07.02"]
[Round "6.29"]
[White "Wang, Qinxuanyi"]
[Black "Zhang, Xiao"]
[Result "1-0"]
[ECO "E12"]
[WhiteElo "2149"]
[BlackElo "2193"]
[Annotator "RC"]
[PlyCount "93"]
[EventDate "2024.06.28"]
[EventType "team-tourn"]
[EventCountry "CHN"]
[SourceTitle "playchess.com"]
[Source "ChessBase"]
[SourceQuality "1"]
[TimeControl "40/5400+30:1800+30"]

1. d4 {[%emt 0:00:04]} Nf6 {[%emt 0:00:06]} 2. c4 {[%emt 0:00:05]} e6 {[%emt 0:00:03]} 3. Nf3 {[%emt 0:00:05]} b6 {[%emt 0:00:05]} 4. a3 {[%emt 0:00:04]} Bb7 {[%emt 0:00:34]} 5. Nc3 {[%emt 0:00:07]} d5 {[%emt 0:00:04]} 6. cxd5 {[%emt 0:00:04]} Nxd5 {[%emt 0:00:03]} 7. Qc2 {[%emt 0:00:05]} Be7 {[%emt 0:00:03]} 8. e4 {[%emt 0:00:04]} Nxc3 {[%emt 0:00:04]} 9. bxc3 {[%emt 0:00:03]} O-O {[%emt 0:00:08]} 10. Bd3 {[%emt 0:00:04]} c5 {[%emt 0:00:04]} 11. O-O {[%emt 0:00:04]} Qc7 {[%emt 0:00:04]} 12. Qe2 {[%emt 0:00:16]} Nd7 {[%emt 0:00:17]} 13. Bd2 {[%emt 0:00:54]} Rfd8 {[%emt 0:02:20]} 14. Rfe1 {[%emt 0:01:17]} Nf8 {[%emt 0:02:17]} 15. h4 {[%emt 0:01:27]} Rac8 {[%emt 0:10:11]} 16. h5 {[%emt 0:03:16]} a5 {[%emt 0:03:44]} 17. a4 {[%emt 0:04:02]} Bc6 {[%emt 0:06:02]} 18. h6 {[%emt 0:13:27]} g6 {[%emt 0:00:15]} 19. g3 {[%emt 0:02:31]} Qa7 {[%emt 0:10:21]} 20. Bf4 {[%emt 0:09:29]} Bf6 {[%emt 0:18:00]} 21. Qe3 {[%emt 0:12:10]} cxd4 {[%emt 0:02:06]} 22. cxd4 {[%emt 0:00:09]} Qd7 {[%emt 0:00:51]} 23. Bg5 {[%emt 0:00:50]} Qe7 {[%emt 0:05:44]} 24. e5 {[%emt 0:00:52]} Bxg5 {[%emt 0:00:17]} 25. Nxg5 {[%emt 0:00:04]} f5 {[%emt 0:09:13]} 26. exf6 {[%emt 0:05:52]} Qxf6 {[%emt 0:00:10]} 27. Nxe6 {[%emt 0:00:34]} Qxe6 {[%emt 0:11:10]} 28. Qxe6+ {[%emt 0:00:28]} Nxe6 {[%emt 0:00:02]} 29. Bc4 {[%emt 0:01:07]} Bd5 {[%emt 0:05:47]} 30. Bxd5 {[%emt 0:00:03]} Rxd5 {[%emt 0:00:03]} 31. Rxe6 {[%emt 0:00:05]} Rxd4 {[%emt 0:01:03]} 32. Rxb6 {[%emt 0:00:05]} Rc7 {[%emt 0:02:14]} 33. Rb5 {[%emt 0:04:43]} Ra7 {[%emt 0:00:08]} 34. Rab1 {[%emt 0:00:27]} Rxa4 {[%emt 0:02:15]} 35. Rb8+ {[%emt 0:00:11]} Kf7 {[%emt 0:00:05]} 36. R1b7+ {[%emt 0:00:02]} Rxb7 {[%emt 0:00:05]} 37. Rxb7+ {[%emt 0:00:02]} Kf6 {[%emt 0:06:18]} 38. Rxh7 {[%emt 0:00:04]} Rb4 {[%emt 0:02:14]} 39. Ra7 {[%emt 0:01:07]} Rb5 {[%emt 0:02:54]} 40. h7 {[%emt 0:00:00]} Rh5 {[%emt 0:00:00]} 41. g4 {[%emt 0:11:30]} Rh4 {[%emt 0:01:18]} 42. Kg2 {[%emt 0:00:05]} g5 {[%emt 0:07:12]} 43. Kg3 {[%emt 0:01:12]} a4 {[%emt 0:00:59]} 44. Ra6+ {[%emt 0:02:29]} Kg7 {[%emt 0:00:54]} 45. Rxa4 {[%emt 0:00:04]} Kxh7 {[%emt 0:00:14]} 46. Ra5 {[%emt 0:00:02]} Kg6 {[%emt 0:05:52]} 47. Rxg5+ {[%emt 0:00:11]} 1-0

[Event "Chinese League Division-A 2024"]
[Site "Fuling Chongqing"]
[Date "2024.07.02"]
[Round "6.30"]
[White "Hu, Yu A."]
[Black "Liu, Manli"]
[Result "1/2-1/2"]
[ECO "D00"]
[WhiteElo "2127"]
[BlackElo "2056"]
[Annotator "NA RC"]
[PlyCount "60"]
[EventDate "2024.06.28"]
[EventType "team-tourn"]
[EventCountry "CHN"]
[SourceTitle "playchess.com"]
[Source "ChessBase"]
[SourceQuality "1"]
[TimeControl "40/5400+30:1800+30"]

1. d4 {[%emt 0:00:20]} Nf6 {[%emt 0:00:43]} 2. Nc3 {[%emt 0:00:26]} d5 {[%emt 0:01:02]} 3. Bf4 {[%emt 0:00:12]} e6 {[%emt 0:01:06]} 4. Nb5 {[%emt 0:02:22]} Na6 {[%emt 0:02:33]} 5. e3 {[%emt 0:00:40]} c6 {[%emt 0:00:53]} 6. Nc3 {[%emt 0:00:07]} Nb8 {[%emt 0:05:17]} 7. Bd3 {[%emt 0:01:46]} Bd6 {[%emt 0:00:32]} 8. Qf3 {[%emt 0:11:49]} Qc7 {[%emt 0:02:09]} 9. Nge2 {[%emt 0:00:33]} Nbd7 {[%emt 0:04:07]} 10. Bxd6 {[%emt 0:22:06]} Qxd6 {[%emt 0:00:09]} 11. Qg3 {[%emt 0:00:20]} Qxg3 {[%emt 0:01:09]} 12. Nxg3 {[%emt 0:00:04]} a5 {[%emt 0:03:11]} 13. a4 {[%emt 0:01:46]} b6 {[%emt 0:06:33]} 14. O-O {[%emt 0:03:27]} Ba6 {[%emt 0:00:09]} 15. Bxa6 {[%emt 0:02:05]} Rxa6 {[%emt 0:00:06]} 16. e4 {[%emt 0:00:18]} dxe4 {[%emt 0:01:36]} 17. Ncxe4 {[%emt 0:00:21]} Ke7 {[%emt 0:03:08]} 18. Rfe1 {[%emt 0:00:46]} Nxe4 {[%emt 0:00:37]} 19. Nxe4 {[%emt 0:00:07]} Rd8 {[%emt 0:01:14]} 20. c3 {[%emt 0:02:29]} Nf6 {[%emt 0:02:00]} 21. Ng5 {[%emt 0:06:12]} h6 {[%emt 0:11:04]} 22. Nf3 {[%emt 0:00:11]} Ra7 {[%emt 0:14:12]} 23. Ne5 {[%emt 0:08:17]} Rc8 {[%emt 0:01:56]} 24. Nc4 {[%emt 0:02:38]} Nd5 {[%emt 0:01:33]} 25. g3 {[%emt 0:02:31]} g5 {[%emt 0:00:30]} 26. h3 {[%emt 0:00:20]} Rac7 {[%emt 0:12:34]} 27. Rad1 {[%emt 0:05:38]} Ra7 {[%emt 0:02:05]} 28. Ra1 {[%emt 0:10:33]} Rac7 {[%emt 0:02:16]} 29. Rad1 {[%emt 0:00:20]} Ra7 {[%emt 0:00:07]} 30. Ra1 {[%emt 0:04:52]} Rac7 {[%emt 0:00:08]} 1/2-1/2

[Event "Chinese League Division-A 2024"]
[Site "Fuling Chongqing"]
[Date "2024.07.03"]
[Round "7.1"]
[White "Xu, Yinglun"]
[Black "Yu, Yangyi"]
[Result "1/2-1/2"]
[ECO "A50"]
[WhiteElo "2526"]
[BlackElo "2715"]
[Annotator "TA"]
[PlyCount "122"]
[EventDate "2024.06.28"]
[EventType "team-tourn"]
[EventCountry "CHN"]
[SourceTitle "playchess.com"]
[Source "ChessBase"]
[SourceQuality "1"]
[TimeControl "40/5400+30:1800+30"]

{[%evp 73,122,-141,-8,-8,0,0,0,0,0,0,0,0,0,0,0,0,0,0,0,0,0,0,0,0,0,0,0,-8,0,0,0,0,0,0,0,0,0,0,0,0,0,0,0,0,0,0,0,0,0,0,0]} 1. Nf3 {[%emt 0:00:08]} Nf6 {[%emt 0:00:46]} 2. c4 {[%emt 0:00:25]} b6 {[%emt 0:00:50]} 3. g3 {[%emt 0:01:19]} Bb7 {[%emt 0:00:41]} 4. Bg2 {[%emt 0:00:07]} g6 {[%emt 0:02:47]} 5. d4 {[%emt 0:04:23]} Bg7 {[%emt 0:00:17]} 6. O-O {[%emt 0:01:39]} O-O {[%emt 0:00:12]} 7. Qc2 {[%emt 0:01:01]} c5 {[%emt 0:05:11] A50: Queen's Fianchetto Defence (1 d4 Nf6 2 c4 b6).} 8. d5 {[%emt 0:14:09]} b5 {[%emt 0:00:19]} 9. cxb5 {[%emt 0:05:50]} Nxd5 {[%emt 0:04:32]} 10. e4 $146 {[%emt 0:00:29]} ({Predecessor:} 10. Qxc5 d6 11. Qc4 Nd7 12. Nc3 Rc8 13. Qh4 Nxc3 14. bxc3 h5 15. Bg5 Re8 16. Rad1 Rxc3 17. Rxd6 {0-1 Eke,S (2224)-Morgunov,M (2416) EU-ch U18 30th 2022 (3)}) 10... Nb4 {[%emt 0:11:57]} 11. Qxc5 {[%emt 0:06:16]} Nd3 {[%emt 0:01:02]} 12. Qc2 {[%emt 0:00:23]} Nxc1 {[%emt 0:00:32]} 13. Rxc1 {[%emt 0:00:08]} a6 {[%emt 0:00:45]} 14. bxa6 {[%emt 0:01:22]} Nxa6 {[%emt 0:02:36]} 15. Nc3 {[%emt 0:03:19]} Qb6 {[%emt 0:08:50]} 16. Rab1 {[%emt 0:21:47]} d6 {[%emt 0:13:03]} 17. b4 {[%emt 0:14:04]} Bxc3 {[%emt 0:13:08]} 18. Qxc3 {[%emt 0:00:21]} Bxe4 {[%emt 0:00:56]} 19. Rb2 {[%emt 0:00:49]} Rfc8 {[%emt 0:00:15]} 20. Qe3 {[%emt 0:05:33]} Rxc1+ {[%emt 0:01:56]} 21. Qxc1 {[%emt 0:00:04]} Nc7 {[%emt 0:00:15]} 22. Qe3 {[%emt 0:10:20]} Qxe3 {[%emt 0:04:54]} 23. fxe3 {[%emt 0:00:04]} Nd5 {[%emt 0:00:07]} 24. b5 {[%emt 0:06:53]} Nxe3 {[%emt 0:02:06]} 25. Re2 {[%emt 0:00:42]} Ra3 {[%emt 0:00:01]} 26. b6 {[%emt 0:01:09]} Bb7 {[%emt 0:04:53]} 27. Ng5 {[%emt 0:00:37]} d5 {[%emt 0:02:05]} 28. Kf2 {[%emt 0:00:20]} Ng4+ {[%emt 0:04:27]} 29. Kg1 {[%emt 0:00:05]} e6 {[%emt 0:01:10]} 30. h3 {[%emt 0:01:10]} Ne3 {[%emt 0:02:11]} 31. Rf2 {[%emt 0:00:06]} Nf5 {[%emt 0:06:42]} 32. Nxf7 {[%emt 0:00:30]} Kxf7 {[%emt 0:01:03]} 33. g4 {[%emt 0:00:04]} Kf6 {[%emt 0:01:42]} 34. Bf1 {[%emt 0:01:05]} Ra4 {[%emt 0:04:16]} 35. gxf5 {[%emt 0:00:16]} gxf5 {[%emt 0:00:38]} 36. Rb2 {[%emt 0:00:32]} Ke5 {[%emt 0:00:29]} 37. Bb5 {[%emt 0:00:32] [#]} Ra3 {[%emt 0:00:40]} ({Black should play} 37... Ra8 $1 $17 {And now ...d4 would win.} 38. Rc2 d4) 38. Rc2 $1 $11 {[%emt 0:00:06]} d4 {[%emt 0:00:44]} (38... Rxh3 39. Rc7 Ba8 40. b7 Bxb7 41. Rxb7) 39. Rc7 {[%emt 0:00:35]} Be4 {[%emt 0:00:30]} (39... Rg3+ 40. Kf1 Bd5 41. b7 Bxb7 42. Rxb7 $14) 40. b7 {[%emt 0:00:00]} Bxb7 {[%emt 0:00:00]} (40... Rxh3 $2 {perishes.} 41. b8=Q (41. b8=R d3 $11) 41... Rg3+ 42. Kf1 $18) 41. Rxb7 {[%emt 0:00:15]} Rxa2 {[%emt 0:04:09]} 42. Rxh7 {[%emt 0:05:58]} Rb2 {[%emt 0:02:35]} 43. Bc4 {[%emt 0:02:46]} Rc2 {[%emt 0:00:15]} 44. Bd3 {[%emt 0:06:48]} Rc3 {[%emt 0:01:22]} 45. Bf1 {[%emt 0:01:03]} Kf4 {[%emt 0:00:35]} 46. h4 {[%emt 0:02:33]} e5 {[%emt 0:00:48]} 47. h5 {[%emt 0:00:21]} e4 {[%emt 0:01:49]} 48. h6 {[%emt 0:01:47]} Rc6 {[%emt 0:00:53]} 49. Rd7 {[%emt 0:01:29]} Ke3 {[%emt 0:04:33]} (49... Rxh6 50. Rxd4 Kf3 51. Bg2+ Kg3 52. Bxe4) 50. h7 {[%emt 0:00:11]} Rg6+ {[%emt 0:03:59]} 51. Kh2 {[%emt 0:00:17]} (51. Bg2 $5 Rh6 $8 52. Rg7 $11) 51... Rh6+ {[%emt 0:00:11]} 52. Kg3 {[%emt 0:00:18]} d3 {[%emt 0:01:00]} 53. Bxd3 $1 {[%emt 0:00:56]} exd3 {[%emt 0:02:56]} 54. Re7+ {[%emt 0:00:05]} Kd2 {[%emt 0:01:39]} 55. Kf4 {[%emt 0:00:09]} Rh5 {[%emt 0:00:44]} 56. Rd7 {[%emt 0:00:18]} Ke2 {[%emt 0:01:22]} 57. Re7+ {[%emt 0:00:05]} Kd1 {[%emt 0:00:07]} 58. Ra7 {[%emt 0:00:20]} d2 {[%emt 0:00:29]} 59. Rd7 {[%emt 0:00:07]} Ke2 {[%emt 0:03:06]} (59... Kc2 $5 60. Rc7+ $8 Kb2 61. Rb7+ Kc2 62. Rc7+ Kb2 63. Rb7+ Kc3 64. Rc7+ Kd3 65. Rd7+ Kc2 66. Rc7+ $11) 60. Re7+ {[%emt 0:00:06]} Kf1 {[%emt 0:00:53]} (60... Kd3 $5 61. Rd7+ $8 Ke2 62. Re7+ Kd3 63. Rd7+ Ke2 $11) 61. Rd7 {[%emt 0:00:07]} Ke2 {[%emt 0:00:50]} (61... Ke1 $5 62. Re7+ $8 Kf2 $11) 1/2-1/2

[Event "Chinese League Division-A 2024"]
[Site "Fuling Chongqing"]
[Date "2024.07.03"]
[Round "7.2"]
[White "Li, Chao b"]
[Black "Xie, Kaifan"]
[Result "1-0"]
[ECO "B19"]
[WhiteElo "2645"]
[BlackElo "2376"]
[Annotator "TA"]
[PlyCount "77"]
[EventDate "2024.06.28"]
[EventType "team-tourn"]
[EventCountry "CHN"]
[SourceTitle "playchess.com"]
[Source "ChessBase"]
[SourceQuality "1"]
[TimeControl "40/5400+30:1800+30"]

{[%evp 18,77,13,12,20,20,25,4,8,0,7,0,30,0,68,60,65,62,117,105,101,97,176,204,267,245,359,277,266,229,229,230,232,221,247,241,291,288,289,290,333,335,319,336,299,281,290,283,291,290,339,333,346,292,408,405,404,396,432,431,411,416]} 1. e4 {[%emt 0:00:06]} c6 {[%emt 0:00:09]} 2. d4 {[%emt 0:00:09]} d5 {[%emt 0:00:11]} 3. Nc3 {[%emt 0:00:09][%cal Bb1c3,Bc3e4,Be4g3][%mdl 32]} dxe4 {[%emt 0:00:28]} 4. Nxe4 {[%emt 0:00:06]} Bf5 {[%emt 0:00:07]} 5. Ng3 {[%emt 0:00:39]} Bg6 {[%emt 0:00:08]} 6. h4 {[%emt 0:00:13]} h6 {[%emt 0:00:11]} 7. Nf3 {[%emt 0:00:36]} e6 {[%emt 0:00:27]} 8. Ne5 {[%emt 0:00:29]} Bh7 {[%emt 0:00:09]} 9. Bd3 {[%emt 0:00:11]} Bxd3 {[%emt 0:00:11]} 10. Qxd3 {[%emt 0:00:06]} Nd7 {[%emt 0:00:07]} 11. Qe2 {[%emt 0:00:22]} Ngf6 {[%emt 0:02:03]} 12. O-O {[%emt 0:00:23]} Be7 {[%emt 0:04:26] The position is equal.} 13. Rd1 {[%emt 0:01:38]} O-O {[%emt 0:03:20]} 14. Rd3 {[%emt 0:00:15]} Qc7 {[%emt 0:15:37]} 15. c4 {[%emt 0:00:47]} c5 {[%emt 0:06:10]} (15... Rad8 $11) 16. Bf4 $1 $36 {[%emt 0:00:44][%cal Oe5g6][%mdl 2048] aiming for Ng6! White has the initiative.} cxd4 {[%emt 0:05:15]} 17. Ng6 {[%emt 0:02:19][%cal Be5g6,Bg6f8,Bf8e6,Be6g7,Bg7f5][%mdl 32] Wards off Nxe5. White has more active pieces.} (17. Rxd4 Nxe5 18. Bxe5 Qa5 $16) 17... Bd6 {[%emt 0:01:06] Black is now going downhill.} (17... Qc5 $14 18. Nxe7+ (18. Nxf8 Rxf8 19. Rc1 Re8 $11) 18... Qxe7) 18. Bxd6 $16 {[%emt 0:00:24]} Qxd6 {[%emt 0:00:02]} 19. Nxf8 {[%emt 0:00:11]} Ne5 {[%emt 0:12:19] [#]} (19... Nc5 20. Nxe6 fxe6 (20... Nxd3 $2 21. Nxg7 Qe5 22. Qxd3 $18) 21. Rf3 $18) (19... Rxf8 $16 20. Rad1 e5) 20. Nxe6 $1 $18 {[%emt 0:01:43]} Nxd3 {[%emt 0:13:17]} (20... fxe6 21. Rd2) 21. Nxg7 {[%emt 0:00:32]} ({Stronger than} 21. Qxd3 fxe6 22. Re1 Rd8 $11) 21... Nc5 {[%emt 0:02:25]} (21... Qe5 {was called for.}) 22. N7f5 {[%emt 0:22:59][%csl LRd6,LRh6]} Qf4 {[%emt 0:01:15]} 23. Rd1 {[%emt 0:01:23]} Re8 {[%emt 0:02:45]} 24. Qf3 {[%emt 0:01:13]} ({Much less strong is} 24. Rxd4 Qc1+ 25. Rd1 (25. Qf1 $2 Re1 $19) 25... Rxe2 26. Rxc1 Rxb2 $16) 24... Qxf3 {[%emt 0:02:41]} 25. gxf3 {[%emt 0:01:46]} Ne6 {[%emt 0:00:51]} 26. Nxh6+ {[%emt 0:01:30]} Kf8 {[%emt 0:00:05]} 27. Ng4 {[%emt 0:10:32]} Ng8 {[%emt 0:01:28]} 28. h5 {[%emt 0:20:50][%cal Bh4h5,Bh5h6,Bh6h7][%mdl 32]} Rd8 {[%emt 0:01:11]} 29. h6 {[%emt 0:00:29] Hoping for h7.} Ne7 {[%emt 0:00:16]} 30. Nf6 {[%emt 0:01:29]} d3 {[%emt 0:02:15]} 31. Ngh5 {[%emt 0:04:26] Black must now prevent f4.} Rd4 {[%emt 0:01:58]} 32. h7 {[%emt 0:00:57]} Ng6 {[%emt 0:00:04]} 33. b3 {[%emt 0:04:20]} a6 {[%emt 0:01:54]} 34. Kf1 {[%emt 0:02:59]} Nef4 {[%emt 0:04:28] [#]} 35. Nd7+ $1 {[%emt 0:03:02][%mdl 512]} Rxd7 {[%emt 0:00:19]} (35... Ke7 36. Nxf4) 36. Nxf4 {[%emt 0:00:19]} Kg7 {[%emt 0:00:05]} 37. Rxd3 {[%emt 0:00:39]} Re7 {[%emt 0:00:17] [#]} 38. Rd8 $1 {[%emt 0:01:09] Intending Nxg6 and mate.} Kxh7 {[%emt 0:00:16]} 39. Nd5 {[%emt 0:00:05] Weighted Error Value: White=0.10 (very precise) /Black=0.36.  Mistake:       	---       	Black=4      Inaccurate:     	White=1     	Black=3      OK:         	White=17    	Black=14     Best:        	White=1     	---        Strong:       	White=1     	---        Brilliant:      	White=1     	---} 1-0

[Event "Chinese League Division-A 2024"]
[Site "Fuling Chongqing"]
[Date "2024.07.03"]
[Round "7.3"]
[White "Wu, Yixing"]
[Black "Xiu, Deshun"]
[Result "0-1"]
[ECO "D45"]
[WhiteElo "2326"]
[BlackElo "2514"]
[Annotator "TA"]
[PlyCount "76"]
[EventDate "2024.06.28"]
[EventType "team-tourn"]
[EventCountry "CHN"]
[SourceTitle "playchess.com"]
[Source "ChessBase"]
[SourceQuality "1"]
[TimeControl "40/5400+30:1800+30"]

{[%evp 21,76,0,0,0,0,-2,0,-10,0,-24,-26,-21,-18,-42,-39,-43,-36,-59,-62,-92,-96,-264,-254,-254,-261,-261,-250,-248,-183,-370,-368,-783,-737,-1968,-1841,-3259,-3079,-2145,-936,-853,-906,-945,-908,-933,-902,-919,-955,-947,-938,-945,-922,-997,-992,-943,-869,-1183,-1044]} 1. d4 {[%emt 0:00:03]} d5 {[%emt 0:00:25]} 2. c4 {[%emt 0:00:29]} e6 {[%emt 0:00:14]} 3. Nf3 {[%emt 0:00:56]} Nf6 {[%emt 0:00:39]} 4. Nc3 {[%emt 0:00:43]} c6 {[%emt 0:00:31]} 5. e3 {[%emt 0:00:15]} Nbd7 {[%emt 0:00:09]} 6. Qc2 {[%emt 0:01:31]} Bd6 {[%emt 0:00:21]} 7. b3 {[%emt 0:05:02]} O-O {[%emt 0:01:03]} 8. Be2 {[%emt 0:02:35]} b6 {[%emt 0:00:27]} 9. Bb2 {[%emt 0:00:50]} Bb7 {[%emt 0:00:15]} 10. O-O {[%emt 0:00:56]} Qe7 {[%emt 0:00:11]} 11. a4 {[%emt 0:01:09]} a5 {[%emt 0:01:50]} 12. Rfe1 {[%emt 0:08:27]} Bb4 {[%emt 0:04:28]} 13. Rad1 {[%emt 0:08:03]} c5 {[%emt 0:24:48]} 14. cxd5 {[%emt 0:03:46] The position is equal.} exd5 {[%emt 0:17:53]} 15. Bb5 {[%emt 0:16:16]} Rac8 {[%emt 0:10:57]} 16. Qf5 {[%emt 0:09:31]} Rfd8 {[%emt 0:09:51]} 17. Re2 {[%emt 0:07:44]} Bxc3 {[%emt 0:01:57]} 18. Bxc3 {[%emt 0:00:09]} Ne4 {[%emt 0:00:06] Repels Nd2} 19. Ba1 {[%emt 0:05:34]} Nd6 {[%emt 0:00:16]} 20. Qd3 {[%emt 0:04:44]} c4 {[%emt 0:01:23]} 21. bxc4 {[%emt 0:00:05] Loses the game.} (21. Qc2 $17) 21... dxc4 $19 {[%emt 0:00:10]} 22. Qc3 {[%emt 0:00:32][%cal Oe3e4]} Nxb5 {[%emt 0:01:59]} 23. axb5 {[%emt 0:00:06][%cal Oe3e4]} Bxf3 {[%emt 0:00:32]} 24. gxf3 {[%emt 0:00:07]} Ne5 {[%emt 0:04:19][%cal Bd7e5,Be5d3,Bd3f4,Bf4h3,Bh3f2,Bf2d1][%mdl 32]} 25. e4 $2 {[%emt 0:04:12]} (25. d5 {is the only way for White.} f6 (25... Nxf3+ 26. Kh1 $15) 26. e4) 25... Nd3 {[%emt 0:00:46]} ({Less strong is} 25... Qg5+ 26. Kh1 $15) 26. Qd2 $2 {[%emt 0:03:29]} (26. Red2 Qg5+ 27. Kh1) 26... Qh4 {[%emt 0:02:57] Strongly threatening ...Rd6. Black is clearly winning.} 27. Re3 {[%emt 0:08:59]} Nf4 {[%emt 0:00:38]} 28. Kh1 {[%emt 0:00:25]} Rd6 {[%emt 0:00:24]} 29. Qe1 {[%emt 0:01:04]} Rh6 {[%emt 0:00:33]} (29... Nd3 $142 30. Rexd3 cxd3) 30. Qg1 {[%emt 0:00:37]} Nh3 {[%emt 0:00:36][%csl LRf2,LRg1]} 31. Qg3 {[%emt 0:01:15]} Nxf2+ {[%emt 0:01:24]} 32. Kg1 {[%emt 0:00:18]} Nxd1 {[%emt 0:05:05]} 33. Qxh4 {[%emt 0:00:15]} Rxh4 {[%emt 0:00:06]} 34. Re1 {[%emt 0:00:05] [#]} c3 $1 {[%emt 0:01:38] ( -> ...c2)} 35. Rxd1 {[%emt 0:00:15] [#]} f5 $1 {[%emt 0:00:47]} 36. e5 {[%emt 0:04:01]} (36. exf5 c2) 36... Rc4 {[%emt 0:03:29]} 37. e6 {[%emt 0:02:43]} Rhxd4 {[%emt 0:00:29]} 38. Re1 {[%emt 0:00:49]} Rd8 {[%emt 0:00:19] Weighted Error Value: White=0.93/Black=0.23 (precise) .  Loses game:     	White=1     	---        Mistake:       	White=2     	---        Inaccurate:     	White=2     	---        OK:         	White=2     	Black=7} 0-1

[Event "Chinese League Division-A 2024"]
[Site "Fuling Chongqing"]
[Date "2024.07.03"]
[Round "7.4"]
[White "Li, Ruofan"]
[Black "Chen, Yining"]
[Result "1-0"]
[ECO "D52"]
[WhiteElo "2321"]
[BlackElo "2300"]
[Annotator "TA"]
[PlyCount "95"]
[EventDate "2024.06.28"]
[EventType "team-tourn"]
[EventCountry "CHN"]
[SourceTitle "playchess.com"]
[Source "ChessBase"]
[SourceQuality "1"]
[TimeControl "40/5400+30:1800+30"]

{[%evp 13,95,27,21,20,28,27,21,28,52,18,35,35,13,21,30,22,18,16,17,-6,5,11,12,14,31,29,20,17,26,18,59,16,23,26,35,22,23,14,41,44,46,34,46,48,42,41,72,60,61,71,83,83,72,72,112,114,125,127,131,132,154,139,166,166,163,160,240,235,283,229,451,197,443,443,633,610,761,751,794,716,1297,1271,816,840]} 1. d4 {[%emt 0:00:03]} d5 {[%emt 0:00:10]} 2. c4 {[%emt 0:00:12]} c6 {[%emt 0:00:07]} 3. Nf3 {[%emt 0:00:23][%cal Bg1f3,Bf3d2,Bd2c4][%mdl 32]} Nf6 {[%emt 0:00:09]} 4. Nc3 {[%emt 0:00:11]} e6 {[%emt 0:00:07]} 5. Bg5 {[%emt 0:00:45]} Nbd7 {[%emt 0:00:31]} 6. e3 {[%emt 0:00:15]} Qa5 {[%emt 0:00:20]} 7. Nd2 {[%emt 0:00:11]} Bb4 {[%emt 0:00:49]} 8. Rc1 {[%emt 0:00:25]} dxc4 {[%emt 0:04:30]} 9. Bxf6 {[%emt 0:00:27]} Nxf6 {[%emt 0:00:08]} 10. Nxc4 {[%emt 0:03:11] A dynamic duo of knights. The position is equal.} Qc7 {[%emt 0:01:21]} 11. g3 {[%emt 0:00:35]} O-O {[%emt 0:05:29]} 12. Bg2 {[%emt 0:00:10]} Nd5 {[%emt 0:06:12]} 13. O-O {[%emt 0:03:05]} Nxc3 {[%emt 0:00:44]} 14. bxc3 {[%emt 0:00:14]} Be7 {[%emt 0:00:20]} 15. Qb3 {[%emt 0:13:36]} b6 {[%emt 0:09:13][%cal Bb7b6,Bb6b5][%mdl 32]} 16. e4 {[%emt 0:15:38]} Ba6 {[%emt 0:08:47]} 17. Rfd1 {[%emt 0:01:57]} Bxc4 {[%emt 0:02:24]} 18. Qxc4 {[%emt 0:00:04]} Rac8 {[%emt 0:00:15]} 19. f4 {[%emt 0:01:45]} b5 {[%emt 0:10:20]} 20. Qe2 {[%emt 0:02:00]} c5 {[%emt 0:04:39] [#] aiming for ...cxd4.} 21. d5 {[%emt 0:02:06]} exd5 {[%emt 0:00:43]} 22. Rxd5 {[%emt 0:00:20]} Qb6 {[%emt 0:01:30] Black is weak on the light squares} 23. c4 {[%emt 0:02:25]} Rfd8 {[%emt 0:04:38]} 24. e5 {[%emt 0:10:10]} bxc4 {[%emt 0:04:01]} 25. Qxc4 {[%emt 0:08:33]} Qb4 {[%emt 0:10:07]} 26. Qxb4 {[%emt 0:11:00]} cxb4 {[%emt 0:00:06]} 27. Rxd8+ {[%emt 0:00:04]} Rxd8 $14 {[%emt 0:00:06][%mdl 4096] Endgame. KRB-KRB} 28. Kf1 {[%emt 0:02:28]} f6 {[%emt 0:03:28]} 29. Rc7 {[%emt 0:03:48][%csl LRa7,LRe7]} Kf7 {[%emt 0:02:49]} 30. Ke2 {[%emt 0:02:37] White is more active.} fxe5 {[%emt 0:01:08]} 31. fxe5 {[%emt 0:00:04]} a5 {[%emt 0:02:27] White leaves nothing to chance now.} 32. Ra7 {[%emt 0:00:56]} a4 {[%emt 0:10:58]} 33. Rxa4 {[%emt 0:01:16]} Bc5 {[%emt 0:01:26]} 34. Ra5 {[%emt 0:01:40]} Bd4 {[%emt 0:01:12]} 35. Bd5+ {[%emt 0:00:15]} Ke7 {[%emt 0:03:05]} 36. Bb3 {[%emt 0:01:06]} Bg1 {[%emt 0:01:10]} 37. h3 {[%emt 0:00:51][%cal Bh2h3,Bh3h4,Bh4g5][%mdl 32]} Bd4 {[%emt 0:01:20]} 38. Rb5 {[%emt 0:03:28]} Bc3 {[%emt 0:00:36]} 39. e6 {[%emt 0:00:26] Against Rd7} Kf6 {[%emt 0:01:22]} (39... Re8 $16 40. g4 Kd6) 40. g4 {[%emt 0:00:00]} h6 {[%emt 0:00:00]} 41. h4 {[%emt 0:02:54] Hoping for Rb7.} ({Much less strong is} 41. Rf5+ $6 Ke7 42. Ke3 (42. Rf7+ Kd6 $16) 42... Bf6 $18) 41... Re8 $2 {[%emt 0:13:01] [#]} (41... Ke7 42. h5 (42. Rb7+ Kd6 $18) 42... Kd6) 42. Ke3 {[%emt 0:04:19]} (42. Rf5+ $142 Ke7 43. Rf7+ Kd6 44. Rd7+ Ke5 45. e7 (45. Rxg7 Kf4 $18)) 42... Ke7 $2 {[%emt 0:02:12]} (42... g6 43. g5+ hxg5 44. hxg5+ Ke7 45. Rb7+ Kd8 46. Rd7+ Kc8) 43. Rb7+ $18 {[%emt 0:01:14] White is clearly winning.} Kd6 {[%emt 0:00:42]} (43... Kd8 $142 44. Rd7+ Kc8) 44. Rd7+ {[%emt 0:00:05]} Kc5 {[%emt 0:01:36]} 45. g5 {[%emt 0:01:51] Wards off Bf6} hxg5 {[%emt 0:05:52]} 46. hxg5 {[%emt 0:00:08]} Bb2 {[%emt 0:00:07]} 47. Ke4 {[%emt 0:00:30]} Kc6 {[%emt 0:04:41]} 48. Ba4+ {[%emt 0:00:32] Weighted Error Value: White=0.14 (very precise) /Black=0.35.  Mistake:       	White=1     	Black=4      Inaccurate:     	White=2     	Black=4      OK:         	White=18    	Black=7      Best:        	White=3     	---} 1-0